[Event "*** Titled Tuesday Blitz"]
[Site "Chess.com"]
[Date "2020.04.07"]
[Round "3"]
[White "asms9699"]
[Black "LivajaM"]
[Result "1-0"]
[WhiteElo "2592"]
[BlackElo "2308"]
[TimeControl "180+1"]
[EndTime "13:25:19 PDT"]
[Termination "asms9699 won by resignation"]

1. c4 {[%clk 0:03:00.9]} 1... e5 {[%clk 0:02:59.4]} 2. g3 {[%clk 0:03:01.4]}
2... Nc6 {[%clk 0:02:59.4]} 3. Bg2 {[%clk 0:03:02]} 3... Bc5 {[%clk 0:02:58.8]}
4. Nc3 {[%clk 0:03:02.5]} 4... d6 {[%clk 0:02:58.9]} 5. Nf3 {[%clk 0:03:03]}
5... Nge7 {[%clk 0:02:58]} 6. e3 {[%clk 0:03:02.9]} 6... a6 {[%clk 0:02:58]} 7.
d4 {[%clk 0:03:03.4]} 7... Bb4 {[%clk 0:02:54.9]} 8. O-O {[%clk 0:03:02.9]} 8...
O-O {[%clk 0:02:51]} 9. Nd5 {[%clk 0:03:01.1]} 9... Ba5 {[%clk 0:02:40.9]} 10.
a3 {[%clk 0:02:55.4]} 10... exd4 {[%clk 0:02:35.7]} 11. Nxd4 {[%clk 0:02:53.3]}
11... Nxd4 {[%clk 0:02:28.4]} 12. Nxe7+ {[%clk 0:02:52]} 12... Qxe7 {[%clk
0:02:27.2]} 13. exd4 {[%clk 0:02:52.9]} 13... Bb6 {[%clk 0:02:24.7]} 14. b4
{[%clk 0:02:52.2]} 14... c6 {[%clk 0:02:22.9]} 15. c5 {[%clk 0:02:51.5]} 15...
Bc7 {[%clk 0:02:21]} 16. Re1 {[%clk 0:02:51.5]} 16... Qf6 {[%clk 0:02:20.4]} 17.
Bf4 {[%clk 0:02:51.4]} 17... Bf5 {[%clk 0:02:13.8]} 18. d5 {[%clk 0:02:50.8]}
18... cxd5 {[%clk 0:02:04.1]} 19. Qxd5 {[%clk 0:02:51.7]} 19... Be6 {[%clk
0:02:00.8]} 20. Qxb7 {[%clk 0:02:49.4]} 20... Rac8 {[%clk 0:01:52.8]} 21. cxd6
{[%clk 0:02:46.8]} 21... Bd8 {[%clk 0:01:51.5]} 22. Rad1 {[%clk 0:02:39.3]}
22... Rc3 {[%clk 0:01:46.8]} 23. Be5 {[%clk 0:02:36.3]} 1-0

[Event "*** Titled Tuesday Blitz"]
[Site "Chess.com"]
[Date "2020.04.07"]
[Round "3"]
[White "platy3"]
[Black "Usurpov"]
[Result "1-0"]
[WhiteElo "2806"]
[BlackElo "2474"]
[TimeControl "180+1"]
[EndTime "13:25:24 PDT"]
[Termination "platy3 won by resignation"]

1. e4 {[%clk 0:03:00.8]} 1... c5 {[%clk 0:02:53.6]} 2. Nf3 {[%clk 0:02:56.8]}
2... e6 {[%clk 0:02:53.6]} 3. d4 {[%clk 0:02:56.6]} 3... cxd4 {[%clk 0:02:53.6]}
4. Nxd4 {[%clk 0:02:57.4]} 4... Nf6 {[%clk 0:02:53.9]} 5. Nc3 {[%clk 0:02:57.8]}
5... Nc6 {[%clk 0:02:54]} 6. Nxc6 {[%clk 0:02:58.3]} 6... bxc6 {[%clk
0:02:54.9]} 7. e5 {[%clk 0:02:58.9]} 7... Nd5 {[%clk 0:02:55]} 8. Ne4 {[%clk
0:02:59.5]} 8... Qc7 {[%clk 0:02:55.4]} 9. f4 {[%clk 0:02:59.5]} 9... Qb6 {[%clk
0:02:55]} 10. c4 {[%clk 0:02:59.6]} 10... Bb4+ {[%clk 0:02:53.9]} 11. Ke2 {[%clk
0:03:00.1]} 11... f5 {[%clk 0:02:53.2]} 12. Nf2 {[%clk 0:03:00.5]} 12... Qa6
{[%clk 0:02:49.5]} 13. Kf3 {[%clk 0:02:56.1]} 13... Nc7 {[%clk 0:02:49.2]} 14.
Be3 {[%clk 0:02:42.6]} 14... Be7 {[%clk 0:02:45.5]} 15. h4 {[%clk 0:02:38.3]}
15... c5 {[%clk 0:02:44.8]} 16. Kg3 {[%clk 0:02:37.5]} 16... Bb7 {[%clk
0:02:40.2]} 17. Be2 {[%clk 0:02:36.4]} 17... Rd8 {[%clk 0:02:31.9]} 18. Qc2
{[%clk 0:02:20.7]} 18... O-O {[%clk 0:02:22.6]} 19. Rad1 {[%clk 0:02:19]} 19...
d5 {[%clk 0:02:16.9]} 20. cxd5 {[%clk 0:02:16.2]} 20... Nxd5 {[%clk 0:02:13.9]}
21. Bxa6 {[%clk 0:02:14.7]} 1-0

[Event "*** Titled Tuesday Blitz"]
[Site "Chess.com"]
[Date "2020.04.07"]
[Round "3"]
[White "Korona_91"]
[Black "RzayevB"]
[Result "0-1"]
[WhiteElo "2415"]
[BlackElo "2649"]
[TimeControl "180+1"]
[EndTime "13:25:29 PDT"]
[Termination "RzayevB won by resignation"]

1. e4 {[%clk 0:03:00.1]} 1... c5 {[%clk 0:02:59.8]} 2. Nf3 {[%clk 0:02:51.4]}
2... a6 {[%clk 0:03:00.1]} 3. c3 {[%clk 0:02:50.9]} 3... e6 {[%clk 0:02:59.8]}
4. d4 {[%clk 0:02:51]} 4... d5 {[%clk 0:03:00.2]} 5. e5 {[%clk 0:02:48.4]} 5...
Nc6 {[%clk 0:02:59.8]} 6. Bd3 {[%clk 0:02:48.5]} 6... Qb6 {[%clk 0:02:59.6]} 7.
O-O {[%clk 0:02:48]} 7... Bd7 {[%clk 0:02:59.9]} 8. a3 {[%clk 0:02:47.4]} 8...
cxd4 {[%clk 0:02:59.6]} 9. cxd4 {[%clk 0:02:46.1]} 9... Nxd4 {[%clk 0:03:00.1]}
10. Nxd4 {[%clk 0:02:44.8]} 10... Qxd4 {[%clk 0:03:01]} 11. Re1 {[%clk
0:02:45.4]} 11... Qb6 {[%clk 0:02:57.5]} 12. Nc3 {[%clk 0:02:44.9]} 12... Bc5
{[%clk 0:02:57.2]} 13. Qg4 {[%clk 0:02:42.5]} 13... Bxf2+ {[%clk 0:02:56.2]} 14.
Kf1 {[%clk 0:02:42.9]} 14... Bxe1 {[%clk 0:02:55.9]} 15. Kxe1 {[%clk 0:02:43.4]}
15... Ne7 {[%clk 0:02:47.9]} 16. Ne2 {[%clk 0:02:39.1]} 16... O-O {[%clk
0:02:44.4]} 17. b4 {[%clk 0:02:34.1]} 17... Ng6 {[%clk 0:02:42.9]} 18. Bb2
{[%clk 0:02:32.3]} 18... Qe3 {[%clk 0:02:42.4]} 19. Rd1 {[%clk 0:02:29.8]} 19...
Bb5 {[%clk 0:02:40.9]} 20. Bd4 {[%clk 0:02:25.2]} 20... Nxe5 {[%clk 0:02:24.7]}
21. Bxe5 {[%clk 0:01:59.4]} 21... Qxe5 {[%clk 0:02:18.1]} 22. Bxb5 {[%clk
0:01:54.2]} 22... axb5 {[%clk 0:02:17.8]} 23. Rd3 {[%clk 0:01:53.6]} 0-1

[Event "*** Titled Tuesday Blitz"]
[Site "Chess.com"]
[Date "2020.04.07"]
[Round "3"]
[White "Training_Day"]
[Black "DanielDardha2005"]
[Result "1-0"]
[WhiteElo "2330"]
[BlackElo "2565"]
[TimeControl "180+1"]
[EndTime "13:25:49 PDT"]
[Termination "Training_Day won by resignation"]

1. e4 {[%clk 0:03:00.9]} 1... c5 {[%clk 0:02:55.5]} 2. c3 {[%clk 0:03:00.6]}
2... Nf6 {[%clk 0:02:46]} 3. e5 {[%clk 0:03:00.6]} 3... Nd5 {[%clk 0:02:42.7]}
4. Nf3 {[%clk 0:03:01.2]} 4... d6 {[%clk 0:02:40.3]} 5. d4 {[%clk 0:03:00.5]}
5... cxd4 {[%clk 0:02:39.4]} 6. Qxd4 {[%clk 0:03:01.4]} 6... e6 {[%clk
0:02:37.2]} 7. Nbd2 {[%clk 0:03:01.7]} 7... Nc6 {[%clk 0:02:37.2]} 8. Bb5 {[%clk
0:03:02.2]} 8... Bd7 {[%clk 0:02:31.2]} 9. Bxc6 {[%clk 0:03:02.5]} 9... Bxc6
{[%clk 0:02:32.1]} 10. Nc4 {[%clk 0:03:02.2]} 10... f6 {[%clk 0:02:32.1]} 11.
exd6 {[%clk 0:02:43.3]} 11... e5 {[%clk 0:02:30]} 12. Qg4 {[%clk 0:01:24.9]}
12... b5 {[%clk 0:02:18.3]} 13. Qe6+ {[%clk 0:01:21.5]} 1-0

[Event "*** Titled Tuesday Blitz"]
[Site "Chess.com"]
[Date "2020.04.07"]
[Round "3"]
[White "Ali_rastbod"]
[Black "stasiek18"]
[Result "1/2-1/2"]
[WhiteElo "2624"]
[BlackElo "2413"]
[TimeControl "180+1"]
[EndTime "13:25:58 PDT"]
[Termination "Game drawn by repetition"]

1. Nf3 {[%clk 0:02:59.3]} 1... Nf6 {[%clk 0:02:59.6]} 2. c4 {[%clk 0:02:59]}
2... g6 {[%clk 0:02:59.8]} 3. b3 {[%clk 0:02:59.5]} 3... Bg7 {[%clk 0:02:59.8]}
4. Bb2 {[%clk 0:03:00.4]} 4... d6 {[%clk 0:02:59.3]} 5. d4 {[%clk 0:03:00.1]}
5... O-O {[%clk 0:02:57.8]} 6. g3 {[%clk 0:03:00]} 6... Nbd7 {[%clk 0:02:55.7]}
7. Bg2 {[%clk 0:03:00.2]} 7... e5 {[%clk 0:02:54.9]} 8. O-O {[%clk 0:03:00.9]}
8... exd4 {[%clk 0:02:48.7]} 9. Nxd4 {[%clk 0:03:00.8]} 9... Re8 {[%clk
0:02:49.1]} 10. Nc3 {[%clk 0:03:00.3]} 10... a5 {[%clk 0:02:49.4]} 11. Qc2
{[%clk 0:02:48.2]} 11... Nc5 {[%clk 0:02:47.8]} 12. Rad1 {[%clk 0:02:47.6]}
12... c6 {[%clk 0:02:40.9]} 13. e4 {[%clk 0:02:33.8]} 13... Qb6 {[%clk
0:02:33.1]} 14. Ba3 {[%clk 0:02:27.5]} 14... Bg4 {[%clk 0:02:31.9]} 15. f3
{[%clk 0:02:26]} 15... Bd7 {[%clk 0:02:27.1]} 16. Kh1 {[%clk 0:02:25.4]} 16...
Rad8 {[%clk 0:02:26.5]} 17. Nde2 {[%clk 0:02:11.2]} 17... Bc8 {[%clk 0:02:25]}
18. Rd2 {[%clk 0:02:06.9]} 18... Bh6 {[%clk 0:02:06]} 19. Rdd1 {[%clk
0:01:41.1]} 19... Bg7 {[%clk 0:02:03.6]} 20. Rd2 {[%clk 0:01:40.5]} 20... Bh6
{[%clk 0:02:03.4]} 21. Rdd1 {[%clk 0:01:40.4]} 21... Bg7 {[%clk 0:01:58.6]}
1/2-1/2

[Event "*** Titled Tuesday Blitz"]
[Site "Chess.com"]
[Date "2020.04.07"]
[Round "3"]
[White "Zkid"]
[Black "ninjaturtle04"]
[Result "1-0"]
[WhiteElo "2817"]
[BlackElo "2575"]
[TimeControl "180+1"]
[EndTime "13:26:22 PDT"]
[Termination "Zkid won by resignation"]

1. e4 {[%clk 0:02:59.5]} 1... c5 {[%clk 0:02:58.8]} 2. Nf3 {[%clk 0:02:59]} 2...
d6 {[%clk 0:02:58.8]} 3. c3 {[%clk 0:02:58.8]} 3... Nf6 {[%clk 0:02:55.9]} 4.
Be2 {[%clk 0:02:58.7]} 4... Bd7 {[%clk 0:02:51.4]} 5. d3 {[%clk 0:02:57.9]} 5...
e5 {[%clk 0:02:49.5]} 6. O-O {[%clk 0:02:57.2]} 6... Nc6 {[%clk 0:02:45.6]} 7.
Re1 {[%clk 0:02:55.5]} 7... Be7 {[%clk 0:02:43.2]} 8. Bf1 {[%clk 0:02:47.9]}
8... O-O {[%clk 0:02:43.8]} 9. d4 {[%clk 0:02:38]} 9... exd4 {[%clk 0:02:42.7]}
10. cxd4 {[%clk 0:02:38.9]} 10... cxd4 {[%clk 0:02:43]} 11. Nxd4 {[%clk
0:02:38.6]} 11... d5 {[%clk 0:02:43.4]} 12. exd5 {[%clk 0:02:12.3]} 12... Nxd5
{[%clk 0:02:40.8]} 13. Nb5 {[%clk 0:02:09.1]} 13... Be6 {[%clk 0:02:38.1]} 14.
N1c3 {[%clk 0:02:04.8]} 14... Nxc3 {[%clk 0:02:35.6]} 15. Nxc3 {[%clk
0:02:04.6]} 15... Qa5 {[%clk 0:02:34.7]} 16. Be3 {[%clk 0:01:45.6]} 16... Rfd8
{[%clk 0:02:31.1]} 17. Qa4 {[%clk 0:01:34.5]} 17... Qxa4 {[%clk 0:02:23.4]} 18.
Nxa4 {[%clk 0:01:35.4]} 18... Nb4 {[%clk 0:02:21.7]} 19. Rec1 {[%clk 0:01:33]}
19... Bf6 {[%clk 0:02:22]} 20. a3 {[%clk 0:01:23.1]} 20... Nd5 {[%clk 0:02:22]}
21. Bd2 {[%clk 0:01:14.1]} 21... b6 {[%clk 0:02:13.6]} 1-0

[Event "*** Titled Tuesday Blitz"]
[Site "Chess.com"]
[Date "2020.04.07"]
[Round "3"]
[White "SanQui14"]
[Black "Gennady_Kozlov"]
[Result "0-1"]
[WhiteElo "2306"]
[BlackElo "2578"]
[TimeControl "180+1"]
[EndTime "13:26:34 PDT"]
[Termination "Gennady_Kozlov won by resignation"]

1. d4 {[%clk 0:03:00.9]} 1... e6 {[%clk 0:02:58.8]} 2. Bf4 {[%clk 0:02:59.8]}
2... Nf6 {[%clk 0:02:57.9]} 3. e3 {[%clk 0:02:59.6]} 3... b6 {[%clk 0:02:56]} 4.
c3 {[%clk 0:02:59.6]} 4... Bb7 {[%clk 0:02:56.5]} 5. Nf3 {[%clk 0:03:00.5]} 5...
Be7 {[%clk 0:02:56.6]} 6. Be2 {[%clk 0:03:01]} 6... Nh5 {[%clk 0:02:55.6]} 7.
Bg3 {[%clk 0:02:59.4]} 7... Nxg3 {[%clk 0:02:55.4]} 8. hxg3 {[%clk 0:03:00.3]}
8... d6 {[%clk 0:02:55.7]} 9. Nbd2 {[%clk 0:03:00.6]} 9... Nd7 {[%clk
0:02:55.8]} 10. O-O {[%clk 0:03:01.2]} 10... f5 {[%clk 0:02:54.8]} 11. Qc2
{[%clk 0:02:59.4]} 11... Nf6 {[%clk 0:02:54.5]} 12. Bd3 {[%clk 0:03:00]} 12...
d5 {[%clk 0:02:50.9]} 13. Ne5 {[%clk 0:02:55.3]} 13... O-O {[%clk 0:02:49.2]}
14. f3 {[%clk 0:02:46.8]} 14... Bd6 {[%clk 0:02:47.1]} 15. Kf2 {[%clk
0:02:42.8]} 15... Bxe5 {[%clk 0:02:45.7]} 16. dxe5 {[%clk 0:02:42.7]} 16... Nd7
{[%clk 0:02:46.6]} 17. f4 {[%clk 0:02:41.7]} 17... c5 {[%clk 0:02:44.9]} 18. Rh1
{[%clk 0:02:40.4]} 18... g6 {[%clk 0:02:44.2]} 19. Nf3 {[%clk 0:02:40]} 19... c4
{[%clk 0:02:42.6]} 20. Be2 {[%clk 0:02:39.7]} 20... Nc5 {[%clk 0:02:43.1]} 21.
Ng5 {[%clk 0:02:33]} 21... Ne4+ {[%clk 0:02:36.1]} 22. Nxe4 {[%clk 0:02:28.2]}
22... fxe4 {[%clk 0:02:37]} 23. Bg4 {[%clk 0:02:24.9]} 23... Bc8 {[%clk
0:02:33.8]} 24. Qd1 {[%clk 0:02:21]} 24... Qc7 {[%clk 0:02:32.1]} 25. Qg1 {[%clk
0:02:20.5]} 25... Qxe5 {[%clk 0:02:31.2]} 26. Qh2 {[%clk 0:02:19.7]} 26... Qg7
{[%clk 0:02:30.6]} 27. Qh3 {[%clk 0:02:17.5]} 27... e5 {[%clk 0:02:25.3]} 28.
Be6+ {[%clk 0:02:07.1]} 28... Kh8 {[%clk 0:02:25]} 29. Ke2 {[%clk 0:02:02.9]}
29... d4 {[%clk 0:02:20.4]} 30. fxe5 {[%clk 0:01:43.9]} 30... d3+ {[%clk
0:02:13.8]} 31. Ke1 {[%clk 0:01:41]} 31... Bxe6 {[%clk 0:02:12.5]} 32. Qxe6
{[%clk 0:01:41.1]} 32... Rae8 {[%clk 0:02:12.6]} 33. Qh3 {[%clk 0:01:37.1]}
33... Rxe5 {[%clk 0:02:12]} 34. Rd1 {[%clk 0:01:30.5]} 34... Rh5 {[%clk
0:02:10.9]} 0-1

[Event "*** Titled Tuesday Blitz"]
[Site "Chess.com"]
[Date "2020.04.07"]
[Round "3"]
[White "SuperNM"]
[Black "BeanScreen"]
[Result "1-0"]
[WhiteElo "2420"]
[BlackElo "2616"]
[TimeControl "180+1"]
[EndTime "13:26:39 PDT"]
[Termination "SuperNM won by resignation"]

1. d4 {[%clk 0:03:00.9]} 1... d5 {[%clk 0:02:59.9]} 2. c4 {[%clk 0:03:01.2]}
2... dxc4 {[%clk 0:03:00.8]} 3. Nf3 {[%clk 0:02:59.6]} 3... a6 {[%clk
0:03:00.5]} 4. e3 {[%clk 0:02:58.4]} 4... Nf6 {[%clk 0:03:00.9]} 5. Bxc4 {[%clk
0:02:57.5]} 5... e6 {[%clk 0:03:01.8]} 6. Bd3 {[%clk 0:02:57.3]} 6... c5 {[%clk
0:03:01.7]} 7. O-O {[%clk 0:02:58.2]} 7... Nc6 {[%clk 0:03:00.7]} 8. Nc3 {[%clk
0:02:57.5]} 8... Be7 {[%clk 0:03:00.1]} 9. a3 {[%clk 0:02:56]} 9... cxd4 {[%clk
0:02:59.8]} 10. exd4 {[%clk 0:02:55.2]} 10... O-O {[%clk 0:02:59.8]} 11. Re1
{[%clk 0:02:55.4]} 11... Nd5 {[%clk 0:02:54.3]} 12. Qe2 {[%clk 0:02:47.6]} 12...
Bf6 {[%clk 0:02:54.3]} 13. Qe4 {[%clk 0:02:29.8]} 13... g6 {[%clk 0:02:53.3]}
14. Bh6 {[%clk 0:02:29.2]} 14... Bg7 {[%clk 0:02:51.3]} 15. Bxg7 {[%clk
0:02:28.7]} 15... Kxg7 {[%clk 0:02:52.2]} 16. Nxd5 {[%clk 0:02:27.5]} 16... Qxd5
{[%clk 0:02:50.2]} 17. Qxd5 {[%clk 0:02:27.4]} 17... exd5 {[%clk 0:02:51.1]} 18.
h3 {[%clk 0:02:25.2]} 18... Kf6 {[%clk 0:02:46.9]} 19. Rac1 {[%clk 0:02:22.3]}
19... Bf5 {[%clk 0:02:44.2]} 20. Bxf5 {[%clk 0:02:21.1]} 20... Kxf5 {[%clk
0:02:45.1]} 21. Rc5 {[%clk 0:02:19.1]} 21... Rad8 {[%clk 0:02:44.6]} 22. b4
{[%clk 0:02:14.6]} 22... Rd6 {[%clk 0:02:29.8]} 23. b5 {[%clk 0:01:59]} 23...
axb5 {[%clk 0:02:28.9]} 24. Rxb5 {[%clk 0:01:59.9]} 24... Rd7 {[%clk 0:02:26.3]}
25. Ne5 {[%clk 0:01:52.9]} 25... Re8 {[%clk 0:02:10.2]} 26. g4+ {[%clk
0:01:46.3]} 26... Kg5 {[%clk 0:02:01.8]} 27. Nxf7+ {[%clk 0:01:30]} 27... Rxf7
{[%clk 0:02:02.7]} 28. Rxe8 {[%clk 0:01:30.3]} 28... Nxd4 {[%clk 0:02:03]} 29.
Rxd5+ {[%clk 0:01:30.3]} 29... Kh4 {[%clk 0:01:57.6]} 30. Rxd4 {[%clk
0:01:28.9]} 30... Kxh3 {[%clk 0:01:57.7]} 31. g5 {[%clk 0:01:24.3]} 1-0

[Event "*** Titled Tuesday Blitz"]
[Site "Chess.com"]
[Date "2020.04.07"]
[Round "3"]
[White "olksuna"]
[Black "semchik73"]
[Result "1-0"]
[WhiteElo "2602"]
[BlackElo "2329"]
[TimeControl "180+1"]
[EndTime "13:26:44 PDT"]
[Termination "olksuna won by resignation"]

1. c4 {[%clk 0:03:00.9]} 1... e5 {[%clk 0:02:59.5]} 2. Nc3 {[%clk 0:03:00.7]}
2... Nf6 {[%clk 0:03:00]} 3. g3 {[%clk 0:03:00.8]} 3... d5 {[%clk 0:03:00.4]} 4.
cxd5 {[%clk 0:03:00.6]} 4... Nxd5 {[%clk 0:03:00.9]} 5. Bg2 {[%clk 0:03:01]}
5... Be6 {[%clk 0:03:01.3]} 6. Nf3 {[%clk 0:02:59.7]} 6... Nc6 {[%clk
0:03:01.5]} 7. O-O {[%clk 0:02:59.5]} 7... Be7 {[%clk 0:03:01.8]} 8. d4 {[%clk
0:02:59.6]} 8... Nxc3 {[%clk 0:03:00]} 9. bxc3 {[%clk 0:02:58.9]} 9... e4 {[%clk
0:03:00.5]} 10. Nd2 {[%clk 0:02:57.8]} 10... f5 {[%clk 0:03:00.9]} 11. e3 {[%clk
0:02:57.1]} 11... O-O {[%clk 0:02:59.9]} 12. c4 {[%clk 0:02:55.6]} 12... Nb4
{[%clk 0:02:59.8]} 13. Qb3 {[%clk 0:02:49.5]} 13... a5 {[%clk 0:02:57.2]} 14. f3
{[%clk 0:02:41.1]} 14... a4 {[%clk 0:02:55.2]} 15. Qc3 {[%clk 0:02:39.3]} 15...
exf3 {[%clk 0:02:51.2]} 16. Nxf3 {[%clk 0:02:36.8]} 16... c5 {[%clk 0:02:50.5]}
17. Rd1 {[%clk 0:02:32.9]} 17... Qc7 {[%clk 0:02:47]} 18. a3 {[%clk 0:02:29.5]}
18... cxd4 {[%clk 0:02:42.1]} 19. exd4 {[%clk 0:02:21.3]} 19... Na6 {[%clk
0:02:40.9]} 20. d5 {[%clk 0:02:16.3]} 20... Bf6 {[%clk 0:02:40.4]} 21. Nd4
{[%clk 0:02:13.6]} 21... Bf7 {[%clk 0:02:38.1]} 22. Bf4 {[%clk 0:02:05.7]} 22...
Qc5 {[%clk 0:02:36.5]} 23. Rac1 {[%clk 0:02:03.9]} 23... Rac8 {[%clk 0:02:35.8]}
24. Qd3 {[%clk 0:02:04.1]} 24... Rfd8 {[%clk 0:02:21.7]} 25. Kh1 {[%clk
0:02:01.7]} 25... g6 {[%clk 0:02:19.5]} 26. h4 {[%clk 0:01:57.5]} 26... Nc7
{[%clk 0:02:14.4]} 27. Nf3 {[%clk 0:01:44.8]} 27... b5 {[%clk 0:02:11]} 28. cxb5
{[%clk 0:01:38.9]} 28... Qb6 {[%clk 0:01:59.3]} 29. Rc6 {[%clk 0:01:32.7]} 29...
Qb7 {[%clk 0:01:57.9]} 30. Rxf6 {[%clk 0:01:29]} 30... Nxd5 {[%clk 0:01:57.8]}
31. Rd6 {[%clk 0:01:21.6]} 31... Nxf4 {[%clk 0:01:55.7]} 32. Rxd8+ {[%clk
0:01:20.6]} 32... Rxd8 {[%clk 0:01:55.6]} 33. Qxd8+ {[%clk 0:01:21]} 33... Kg7
{[%clk 0:01:56.1]} 34. Qd4+ {[%clk 0:01:21.1]} 34... Kg8 {[%clk 0:01:56.3]} 35.
Qxf4 {[%clk 0:01:21.2]} 1-0

[Event "*** Titled Tuesday Blitz"]
[Site "Chess.com"]
[Date "2020.04.07"]
[Round "3"]
[White "googlegoom"]
[Black "orrbaverlekszarnyon"]
[Result "1-0"]
[WhiteElo "2406"]
[BlackElo "2145"]
[TimeControl "180+1"]
[EndTime "13:26:49 PDT"]
[Termination "googlegoom won by resignation"]

1. Nf3 {[%clk 0:03:00]} 1... c5 {[%clk 0:02:59.1]} 2. b3 {[%clk 0:02:59.8]} 2...
Nf6 {[%clk 0:02:58.3]} 3. Bb2 {[%clk 0:03:00.2]} 3... g6 {[%clk 0:02:58.8]} 4.
e3 {[%clk 0:03:00.7]} 4... Bg7 {[%clk 0:02:58.8]} 5. Be2 {[%clk 0:03:01.3]} 5...
Nc6 {[%clk 0:02:58.6]} 6. O-O {[%clk 0:03:01.6]} 6... O-O {[%clk 0:02:57.5]} 7.
d4 {[%clk 0:03:02.5]} 7... cxd4 {[%clk 0:02:57.2]} 8. Nxd4 {[%clk 0:03:03]} 8...
d6 {[%clk 0:02:57.3]} 9. c4 {[%clk 0:03:03]} 9... Bd7 {[%clk 0:02:55.9]} 10. Nd2
{[%clk 0:03:03.1]} 10... a5 {[%clk 0:02:48.7]} 11. a3 {[%clk 0:03:02.9]} 11...
a4 {[%clk 0:02:48.6]} 12. b4 {[%clk 0:03:02.9]} 12... h5 {[%clk 0:02:42]} 13.
Rc1 {[%clk 0:03:01.1]} 13... h4 {[%clk 0:02:40.6]} 14. h3 {[%clk 0:02:58.8]}
14... Qc8 {[%clk 0:02:34.3]} 15. N2f3 {[%clk 0:02:39.8]} 15... Bxh3 {[%clk
0:02:06]} 16. gxh3 {[%clk 0:02:40.7]} 16... Qxh3 {[%clk 0:02:05.9]} 17. Nh2
{[%clk 0:02:41.2]} 17... Ne5 {[%clk 0:01:56.7]} 18. Bf3 {[%clk 0:02:35.3]} 18...
g5 {[%clk 0:01:52.9]} 19. Bg2 {[%clk 0:02:28.2]} 19... Qd7 {[%clk 0:01:49.8]}
20. f4 {[%clk 0:02:26.7]} 20... gxf4 {[%clk 0:01:41]} 21. exf4 {[%clk
0:02:25.9]} 21... Ng6 {[%clk 0:01:39.7]} 22. f5 {[%clk 0:02:00.3]} 22... Ne5
{[%clk 0:01:34.6]} 23. Ndf3 {[%clk 0:02:00]} 23... Neg4 {[%clk 0:01:09.6]} 24.
Nxg4 {[%clk 0:01:54.4]} 24... Nxg4 {[%clk 0:01:10.5]} 25. Bxg7 {[%clk
0:01:54.2]} 25... Kxg7 {[%clk 0:01:07.8]} 26. Nxh4 {[%clk 0:01:51]} 26... f6
{[%clk 0:01:04.5]} 27. Qxg4+ {[%clk 0:01:50.2]} 1-0

[Event "*** Titled Tuesday Blitz"]
[Site "Chess.com"]
[Date "2020.04.07"]
[Round "3"]
[White "AleksanderHnydiuk"]
[Black "A-Fier"]
[Result "1-0"]
[WhiteElo "2569"]
[BlackElo "2818"]
[TimeControl "180+1"]
[EndTime "13:26:53 PDT"]
[Termination "AleksanderHnydiuk won by resignation"]

1. Nf3 {[%clk 0:03:00.9]} 1... c5 {[%clk 0:02:58.7]} 2. c4 {[%clk 0:03:00.7]}
2... Nc6 {[%clk 0:02:58.7]} 3. d4 {[%clk 0:03:00.7]} 3... cxd4 {[%clk
0:02:58.5]} 4. Nxd4 {[%clk 0:03:01.6]} 4... Nf6 {[%clk 0:02:58.8]} 5. Nc3 {[%clk
0:03:00.8]} 5... e6 {[%clk 0:02:59.3]} 6. g3 {[%clk 0:03:00.1]} 6... Qb6 {[%clk
0:02:58.5]} 7. Ndb5 {[%clk 0:03:00.3]} 7... Ne5 {[%clk 0:02:56.2]} 8. Bg2 {[%clk
0:03:00.6]} 8... Nxc4 {[%clk 0:02:48.4]} 9. O-O {[%clk 0:02:50.8]} 9... a6
{[%clk 0:02:48.8]} 10. Qa4 {[%clk 0:02:48.9]} 10... Ne5 {[%clk 0:02:42.9]} 11.
Bf4 {[%clk 0:02:34.6]} 11... Nfg4 {[%clk 0:02:13.2]} 12. h3 {[%clk 0:02:31.7]}
12... g5 {[%clk 0:02:13.5]} 13. Bxg5 {[%clk 0:02:13.7]} 13... Rb8 {[%clk
0:02:12]} 14. hxg4 {[%clk 0:02:05.5]} 14... axb5 {[%clk 0:02:11.7]} 15. Nxb5
{[%clk 0:02:06.4]} 15... Be7 {[%clk 0:01:46.4]} 16. Bxe7 {[%clk 0:01:48.6]}
16... Kxe7 {[%clk 0:01:46.3]} 17. Rfd1 {[%clk 0:01:35.8]} 17... Nc6 {[%clk
0:01:28.5]} 18. Qa3+ {[%clk 0:01:29.8]} 18... Kd8 {[%clk 0:01:16.9]} 19. Nd6
{[%clk 0:01:28.9]} 19... Rf8 {[%clk 0:01:08.5]} 20. Nxc8 {[%clk 0:01:25.8]} 1-0

[Event "*** Titled Tuesday Blitz"]
[Site "Chess.com"]
[Date "2020.04.07"]
[Round "3"]
[White "Gerasimenyuk_Miha"]
[Black "valeriocarnicelli"]
[Result "0-1"]
[WhiteElo "2378"]
[BlackElo "2607"]
[TimeControl "180+1"]
[EndTime "13:26:54 PDT"]
[Termination "valeriocarnicelli won by resignation"]

1. d4 {[%clk 0:03:00.5]} 1... Nf6 {[%clk 0:02:59.3]} 2. Nf3 {[%clk 0:02:59.9]}
2... g6 {[%clk 0:02:59.5]} 3. Bg5 {[%clk 0:02:59.6]} 3... Bg7 {[%clk 0:02:59.7]}
4. Nbd2 {[%clk 0:02:59.6]} 4... O-O {[%clk 0:02:59.4]} 5. e3 {[%clk 0:03:00]}
5... d6 {[%clk 0:02:59.3]} 6. Bd3 {[%clk 0:02:59.8]} 6... Nbd7 {[%clk
0:02:57.2]} 7. h4 {[%clk 0:02:55.1]} 7... h6 {[%clk 0:02:44]} 8. h5 {[%clk
0:02:54.2]} 8... Nxh5 {[%clk 0:02:20]} 9. g4 {[%clk 0:02:47.6]} 9... Nhf6 {[%clk
0:02:14.9]} 10. Bxh6 {[%clk 0:02:47.3]} 10... Bxh6 {[%clk 0:02:07.1]} 11. Rxh6
{[%clk 0:02:43.8]} 11... Nxg4 {[%clk 0:02:07.4]} 12. Rh4 {[%clk 0:02:36.8]}
12... Ndf6 {[%clk 0:01:27.8]} 13. Ng5 {[%clk 0:02:34.8]} 13... Kg7 {[%clk
0:01:25.3]} 14. Ndf3 {[%clk 0:02:04.7]} 14... Rh8 {[%clk 0:01:24.8]} 15. Qe2
{[%clk 0:01:55]} 15... Rxh4 {[%clk 0:01:23.9]} 16. Nxh4 {[%clk 0:01:55.9]} 16...
Qh8 {[%clk 0:01:22.9]} 17. Ngf3 {[%clk 0:01:51.1]} 17... g5 {[%clk 0:01:13.3]}
18. Nf5+ {[%clk 0:01:41.3]} 18... Bxf5 {[%clk 0:01:12.6]} 19. Bxf5 {[%clk
0:01:42.2]} 19... Qh1+ {[%clk 0:01:12.4]} 20. Qf1 {[%clk 0:01:42.1]} 20... Qxf3
{[%clk 0:01:11.4]} 21. Bd3 {[%clk 0:01:35.7]} 21... Rh8 {[%clk 0:01:09.9]} 22.
Be2 {[%clk 0:01:34.8]} 22... Qh1 {[%clk 0:01:07.7]} 0-1